[Event "US Masters 2022"]
[Site "Charlotte"]
[Date "2022.11.24"]
[Round "1.22"]
[White "Puckett, Matthew"]
[Black "Balakrishnan, Praveen"]
[Result "0-1"]
[ECO "E06"]
[WhiteElo "2151"]
[BlackElo "2510"]
[Annotator "TA"]
[PlyCount "98"]
[EventDate "2022.11.23"]
[EventType "swiss"]
[EventCountry "USA"]
[SourceTitle "playchess.com"]
[Source "ChessBase"]
[SourceQuality "1"]
[TimeControl "5400+30"]

{[%evp 16,98,7,0,10,18,14,10,18,19,31,8,8,0,32,0,43,35,61,39,32,43,35,19,19,0,11,13,19,14,12,7,11,4,10,6,14,12,0,10,22,20,25,23,26,23,33,-25,-25,-17,-20,-25,-27,-16,-20,-25,0,-6,0,-114,-114,-150,-118,-101,0,-152,-139,-150,-125,-242,-239,-333,-309,-274,-262,-464,-428,-463,-437,-432,-431,-417,-406,-454,-445]} 1. d4 {[%emt 0:00:03]} Nf6 {[%emt 0:00:46]} 2. c4 {[%emt 0:00:09]} e6 {[%emt 0:00:06]} 3. g3 {[%emt 0:00:35]} d5 {[%emt 0:00:07]} 4. Nf3 {[%emt 0:00:08]} Bb4+ {[%emt 0:00:05]} 5. Bd2 {[%emt 0:00:09]} Be7 {[%emt 0:00:07]} 6. Bg2 {[%emt 0:00:22]} c6 {[%emt 0:00:07]} 7. Qc2 {[%emt 0:01:29]} O-O {[%emt 0:00:10]} 8. O-O {[%emt 0:00:07]} b6 {[%emt 0:00:07]} 9. Bf4 {[%emt 0:04:08]} Ba6 {[%emt 0:00:11] E06: Closed Catalan: Early deviations.} 10. cxd5 {[%emt 0:02:54]} cxd5 {[%emt 0:00:18]} 11. Rc1 {[%emt 0:01:20]} Nbd7 {[%emt 0:00:38] The position is equal.} (11... Nh5 {keeps more tension.} 12. Be3 Nd7 13. Ne5 Rc8) 12. Nc3 {[%emt 0:16:26]} Nh5 {[%emt 0:00:29]} 13. Bd2 {[%emt 0:08:43]} (13. Qa4 $5 {[%cal Ra4a6]} Bc8 14. Qc6 $14) 13... Nhf6 {[%emt 0:00:43]} 14. Bf4 {[%emt 0:00:24]} Nh5 {[%emt 0:09:24]} 15. Bd2 {[%emt 0:00:07]} Rc8 {[%emt 0:04:39]} 16. Qa4 {[%emt 0:05:33]} Nb8 {[%emt 0:01:42] [#]} 17. b4 $146 {[%emt 0:00:37]} (17. e3 {is interesting.} Qd6 18. e4 dxe4 19. Nxe4 Qd7 20. Qxd7 Nxd7 21. Ne5) ({Predecessor:} 17. Ne5 Nf6 18. Nb5 Rxc1+ 19. Rxc1 Qe8 20. Nc6 Nxc6 21. Qxa6 Nb8 22. Qa4 a6 23. Nc3 b5 24. Qc2 Qd7 25. Nb1 Ne8 26. Bf4 Bd6 27. Be3 Be7 28. Bf4 Bd6 29. Be3 Be7 30. Bf4 {½-½ (28) Bogner,S (2549)-Jaracz,P (2543) Germany 2010}) 17... Bc4 {[%emt 0:12:54]} 18. b5 {[%emt 0:07:28]} (18. Ne5 {seems wilder.} a6 19. b5 axb5 20. Nxb5 Bxe2 21. Na7) 18... a6 {[%emt 0:06:37]} 19. bxa6 {[%emt 0:00:33]} (19. Ne5 {looks sharper.} axb5 20. Nxb5 Bxe2 21. Na7) 19... Bxa6 {[%emt 0:01:30]} 20. Rab1 {[%emt 0:04:31]} Rc4 {[%emt 0:13:33]} 21. Qb3 {[%emt 0:03:24]} Rb4 {[%emt 0:08:08]} 22. Qc2 {[%emt 0:00:53][%cal Oc3d5] Nxd5! is the strong threat.} Nf6 {[%emt 0:06:44]} 23. e3 {[%emt 0:11:22]} Rxb1 {[%emt 0:06:07]} 24. Rxb1 {[%emt 0:03:51]} Nbd7 {[%emt 0:02:07]} 25. Nb5 {[%emt 0:07:03]} Qa8 {[%emt 0:06:46]} 26. Bf1 {[%emt 0:00:34] aiming for Nc7.} Rc8 {[%emt 0:01:27]} 27. Qb3 {[%emt 0:00:40]} Bb7 {[%emt 0:03:46]} 28. a4 {[%emt 0:02:57]} Ne4 {[%emt 0:02:29]} 29. Bb4 {[%emt 0:03:49]} Bxb4 {[%emt 0:02:55]} 30. Qxb4 {[%emt 0:00:02]} Bc6 {[%emt 0:03:59]} 31. Rc1 {[%emt 0:01:05]} (31. Ra1 $14) 31... Bxb5 $11 {[%emt 0:00:27]} 32. Rxc8+ {[%emt 0:00:06]} Qxc8 {[%emt 0:00:03]} 33. axb5 {[%emt 0:02:41]} Qc2 {[%emt 0:01:15]} 34. Qe1 {[%emt 0:00:09]} Ndf6 {[%emt 0:02:40] Strongly threatening ...Ng4.} 35. Ne5 {[%emt 0:03:32] Against Ng4} g6 {[%emt 0:00:24]} 36. f3 {[%emt 0:07:43]} Nd2 {[%emt 0:02:09][%cal Of6d7]} 37. Qf2 {[%emt 0:01:11]} (37. Be2 $1 $11) 37... Qc1 $36 {[%emt 0:00:47][%mdl 2048] Black has strong initiative.} 38. Nd3 {[%emt 0:01:03]} Qd1 {[%emt 0:00:41] Black has more active pieces.} 39. Ne5 {[%emt 0:00:42]} Qc1 {[%emt 0:01:06]} (39... Nc4 $142 40. Qe2 Qxe2 41. Bxe2 Nxe3) 40. Nd3 {[%emt 0:00:07]} Qc3 {[%emt 0:00:17]} 41. Ne5 {[%emt 0:00:47]} Ne8 {[%emt 0:01:05]} 42. Be2 {[%emt 0:01:01]} (42. Kg2 $17 {keeps fighting.}) 42... Nd6 $1 $19 {[%emt 0:00:25]} 43. Kg2 {[%emt 0:00:14] [#]} Nf5 $1 {[%emt 0:00:54]} 44. Bd3 {[%emt 0:00:27] [#]} Nc4 $1 {[%emt 0:00:12]} 45. Nxc4 {[%emt 0:00:54]} (45. Bxf5 {was the only chance.} Nxe3+ 46. Kh3 exf5 47. Qa2) 45... Qxd3 {[%emt 0:00:08]} 46. Ne5 {[%emt 0:00:41]} Nxe3+ {[%emt 0:00:27]} (46... Qxe3 $2 {is the wrong capture.} 47. Qxe3 Nxe3+ 48. Kg1 $19) 47. Kh3 {[%emt 0:00:04]} Qxd4 {[%emt 0:00:30]} (47... Qxb5 $2 48. Qxe3 Qb1 49. Qf4 Qf5+ 50. Qxf5 gxf5 51. Kg2 $18) 48. Ng4 {[%emt 0:00:32]} Nf5 {[%emt 0:00:07]} 49. Nh6+ {[%emt 0:00:27]} Kf8 {[%emt 0:00:06] Weighted Error Value: White=0.24 (precise) /Black=0.08 (flawless)} (49... Nxh6 $2 50. Qxd4 Nf5 51. Qxb6 $18) 0-1

[Event "US Masters 2022"]
[Site "Charlotte"]
[Date "2022.11.24"]
[Round "1.23"]
[White "Brodsky, David"]
[Black "Sriniaiyer, Sudarshan"]
[Result "1-0"]
[ECO "B32"]
[WhiteElo "2509"]
[BlackElo "2150"]
[Annotator "TA"]
[PlyCount "91"]
[EventDate "2022.11.23"]
[EventType "swiss"]
[EventCountry "USA"]
[SourceTitle "playchess.com"]
[Source "ChessBase"]
[SourceQuality "1"]
[TimeControl "5400+30"]

{[%evp 10,91,28,21,45,26,29,38,43,29,29,34,41,25,15,8,10,9,70,55,77,20,18,25,37,49,40,33,25,20,25,-15,48,52,43,48,46,37,75,69,109,79,88,74,119,118,109,99,218,196,410,367,416,336,321,276,296,279,1281,1278,1280,1280,1287,1255,1269,1251,1233,1245,1164,1160,1156,1024,1240,1233,1145,754,7235,6419,29968,29968,29966,29962,29972,29964]} 1. e4 {[%emt 0:00:01] Postny,E} c5 {[%emt 0:00:09]} 2. Nf3 {[%emt 0:00:04][%cal Bg1f3,Bf3d4,Bd4b5,Bb5a3,Ba3c2][%mdl 32]} Nc6 {[%emt 0:00:05]} 3. d4 {[%emt 0:00:05]} cxd4 {[%emt 0:00:22]} 4. Nxd4 {[%emt 0:00:04]} e5 {[%emt 0:00:06]} 5. Nb5 {[%emt 0:00:03]} d6 {[%emt 0:00:04]} 6. c4 {[%emt 0:00:14]} g6 {[%emt 0:00:19] 6...Be6 is the modern continuation. B32: Sicilian: Löwenthal and Kalashnikov Variations.} 7. N1c3 {[%emt 0:01:49] [#] Nd5 is the strong threat.} a6 {[%emt 0:00:32]} 8. Na3 {[%emt 0:00:08]} Bg7 {[%emt 0:03:09] White is slightly better.} 9. Be3 {[%emt 0:03:11]} Be6 {[%emt 0:04:55]} 10. Nc2 {[%emt 0:03:24]} Nf6 {[%emt 0:00:37]} 11. Be2 {[%emt 0:02:39] Prevents Ng4.} O-O {[%emt 0:00:12]} 12. O-O {[%emt 0:05:28]} Rc8 {[%emt 0:00:17]} 13. Rc1 {[%emt 0:07:21] [#]} Na5 $146 {[%emt 0:11:03]} ({Black should try} 13... Ne7 $11) ({Predecessor:} 13... Ne7 14. Na3 Nc6 15. Re1 Nd4 16. f3 Qb6 17. Rb1 Nxe2+ 18. Rxe2 Qb4 19. Rd2 Rfd8 {1-0 (43) Ivanchuk,V (2715)-Jobava,B (2727) Wijk aan Zee 2015 CBM 165 [Postny,E]}) 14. b3 $14 {[%emt 0:05:13]} b5 {[%emt 0:00:38][%cal Rb5c4]} 15. Nd5 {[%emt 0:01:30]} ({White should play} 15. Nb4 $16) 15... Bxd5 $11 {[%emt 0:17:10]} (15... bxc4 $2 16. Bb6 Nxd5 17. Bxd8 $18) 16. exd5 {[%emt 0:00:07]} bxc4 {[%emt 0:00:29]} 17. b4 $1 {[%emt 0:01:21]} Nb7 {[%emt 0:00:05]} 18. Na3 {[%emt 0:03:13][%mdl 1024] White has compensation.} a5 $1 {[%emt 0:00:55]} 19. b5 {[%emt 0:00:43]} c3 {[%emt 0:01:13]} 20. Nc4 {[%emt 0:01:33] [#]} (20. b6 {keeps more tension.} Nc5 21. Nc4 Nfe4 22. f3) 20... Ne4 {[%emt 0:17:11]} (20... Ng4 $1 $11) 21. f3 $14 {[%emt 0:13:42][%mdl 64] Deflection} Nec5 {[%emt 0:03:46]} 22. Rxc3 {[%emt 0:00:45]} f5 {[%emt 0:03:23]} 23. Rc1 {[%emt 0:05:02]} e4 {[%emt 0:19:20]} 24. f4 {[%emt 0:02:45] White now steadily converts the win.} Re8 {[%emt 0:03:58]} 25. Qd2 {[%emt 0:05:08]} a4 {[%emt 0:00:43]} 26. g4 {[%emt 0:03:59][%cal Bg2g4,Bg4f5][%mdl 32] White is more active.} Nd3 {[%emt 0:06:44]} 27. Bxd3 {[%emt 0:02:20]} exd3 {[%emt 0:00:01]} 28. gxf5 {[%emt 0:01:39]} Qe7 {[%emt 0:00:04]} (28... Qh4 $16) 29. Qxd3 $18 {[%emt 0:07:27]} Rxc4 $2 {[%emt 0:02:45]} (29... gxf5 {was called for.} 30. Bb6 Qe4 31. Qxe4 Rxe4) 30. Rxc4 {[%emt 0:00:08]} Qxe3+ {[%emt 0:00:02]} 31. Qxe3 {[%emt 0:00:06]} Rxe3 {[%emt 0:00:02]} 32. Rxa4 {[%emt 0:04:40]} gxf5 {[%emt 0:01:27]} 33. b6 {[%emt 0:01:46]} Re4 $2 {[%emt 0:02:50]} (33... Bc3 34. Ra8+ (34. Ra7 Re7 $18) 34... Kf7) 34. Rxe4 {[%emt 0:01:29]} fxe4 {[%emt 0:00:02]} 35. Rc1 {[%emt 0:01:37]} Bd4+ {[%emt 0:01:14]} 36. Kf1 {[%emt 0:00:37]} Bc5 {[%emt 0:00:19]} 37. a4 {[%emt 0:02:07]} Kf7 {[%emt 0:02:08]} 38. Rb1 {[%emt 0:00:28]} Kf6 {[%emt 0:00:32]} 39. a5 {[%emt 0:00:15]} Nxa5 {[%emt 0:00:02]} 40. b7 {[%emt 0:00:05]} Nxb7 {[%emt 0:00:41]} 41. Rxb7 {[%emt 0:00:01] KR-KB} Kf5 {[%emt 0:00:15]} 42. Rf7+ {[%emt 0:00:43]} Kg4 {[%emt 0:00:13]} 43. Kg2 {[%emt 0:01:04]} h6 {[%emt 0:01:23]} 44. h3+ {[%emt 0:00:08] White mates.} Kh5 {[%emt 0:00:30]} 45. Rf6 {[%emt 0:00:32]} e3 {[%emt 0:00:32]} 46. Kf3 {[%emt 0:00:06] Weighted Error Value: White=0.11 (very precise) /Black=0.53} 1-0

[Event "US Masters 2022"]
[Site "Charlotte"]
[Date "2022.11.24"]
[Round "2.1"]
[White "Oparin, Grigoriy"]
[Black "Sethuraman, Sandeep"]
[Result "1-0"]
[ECO "A38"]
[WhiteElo "2683"]
[BlackElo "2371"]
[Annotator "TA"]
[PlyCount "53"]
[EventDate "2022.11.23"]
[EventType "swiss"]
[EventCountry "USA"]
[SourceTitle "playchess.com"]
[Source "ChessBase"]
[SourceQuality "1"]
[TimeControl "5400+30"]

{[%evp 21,53,0,43,7,109,109,109,98,135,127,216,224,202,220,242,241,241,241,233,240,787,531,531,531,518,518,505,503,464,430,737,487,29986,29987]} 1. Nf3 {[%emt 0:01:11]} d5 {[%emt 0:00:04]} 2. g3 {[%emt 0:00:06]} Nf6 {[%emt 0:00:07]} 3. Bg2 {[%emt 0:00:36]} c5 {[%emt 0:00:08]} 4. O-O {[%emt 0:00:29]} g6 {[%emt 0:00:08]} 5. c4 {[%emt 0:04:08]} Bg7 {[%emt 0:00:07]} 6. cxd5 {[%emt 0:01:03]} Nxd5 {[%emt 0:00:17]} 7. Nc3 {[%emt 0:00:15]} O-O {[%emt 0:01:06]} 8. d3 {[%emt 0:02:16]} Nc6 {[%emt 0:05:49]} 9. Nxd5 {[%emt 0:02:18]} Qxd5 {[%emt 0:00:07]} 10. Be3 {[%emt 0:00:03]} Bxb2 {[%emt 0:08:35]} 11. Rb1 {[%emt 0:00:09][%cal Ba1b1,Bb1b7,Bb7e7][%mdl 32]} Bg7 {[%emt 0:04:48]} (11... Qxa2 $2 12. Qd2 $18 (12. Bxc5 Bf6 $11)) 12. Qa4 {[%emt 0:08:21][%cal Of3d4] [#] A38: Symmetrical English vs ...g6: 4 Bg2 Bg7 5 Nf3 Nf6.} Bd7 $146 {[%emt 0:07:17]} (12... Qd7 $11 {keeps the balance.}) ({Predecessor:} 12... Qd7 13. Bxc5 b6 14. Be3 Nd4 15. Qd1 Bb7 16. Nxd4 Bxg2 17. Kxg2 Bxd4 18. Bxd4 Qxd4 19. Qb3 Rac8 20. Rfc1 Rc5 21. e3 Qd6 22. d4 Ra5 23. Rc2 e5 24. Rd1 Rd8 25. Rcd2 Qd5+ 26. Qxd5 {½-½ (26) Kramnik,V (2801)-Grischuk,A (2761) Moscow 2012}) 13. Rxb7 $16 {[%emt 0:15:29] Strongly threatening Ng5.} Ne5 {[%emt 0:02:19]} 14. Qh4 {[%emt 0:00:07] White is better.} Bc6 {[%emt 0:36:37]} 15. Rxe7 {[%emt 0:00:11] Rc1 is the strong threat.} Rfc8 {[%emt 0:04:28]} (15... h5 $16) 16. Rc1 $18 {[%emt 0:06:29]} Nxf3+ {[%emt 0:06:07]} 17. Bxf3 {[%emt 0:00:05]} Qxa2 {[%emt 0:00:05]} 18. Bxc6 {[%emt 0:01:56]} (18. Rxc5 $6 Bxf3 19. Rxc8+ (19. exf3 Rxc5 20. Bxc5 Qd5 $16) 19... Rxc8 $16) 18... Rxc6 {[%emt 0:00:02]} 19. Qe4 {[%emt 0:00:32] And now Re8+ would win.} ({Don't play} 19. Rxc5 $6 Rxc5 20. Bxc5 Bf8) (19. Bxc5 Qd5 $16) 19... Rcc8 {[%emt 0:00:34] Against Re8+} 20. Rxc5 {[%emt 0:00:10][%cal Oe7a7] Threatens to win with Rxa7!} ({Much less strong is} 20. Bxc5 $6 Bf8) 20... Qxe2 $2 {[%emt 0:02:14] [#]} (20... Rf8 21. Rcc7 Rad8 22. Bxa7 (22. Rxa7 Qxe2 23. Bb6 Qxe4 $16) 22... Bf6) 21. Rxa7 $3 {[%emt 0:11:12][%mdl 512] Active counter play!} Rab8 {[%emt 0:00:37] [#] Hoping for ...Rb1+.} 22. Rxc8+ $1 {[%emt 0:00:11]} Rxc8 {[%emt 0:00:02]} 23. Qb7 {[%emt 0:44:43][%csl LRc8,LRf7]} Rf8 {[%emt 0:00:51]} 24. Bc5 {[%emt 0:00:00]} Qe6 {[%emt 0:01:05]} 25. Bxf8 {[%emt 0:00:00]} Bd4 {[%emt 0:00:11]} (25... Bxf8 $142 26. Ra8 Qd6) 26. Kg2 {[%emt 0:00:00] White wants to mate with Bh6.} Bxa7 {[%emt 0:02:05]} (26... Qf5 $18 27. f3 Kxf8 28. Qb4+ Qc5 29. Qxc5+ Bxc5) 27. Bh6 {[%emt 0:00:00] Black did not feel at home in the position after the opening.   Weighted Error Value: White=0.52/Black=0.73} 1-0

[Event "US Masters 2022"]
[Site "Charlotte"]
[Date "2022.11.24"]
[Round "2.2"]
[White "Ostrovskiy, Aleksandr"]
[Black "Negi, Parimarjan"]
[Result "0-1"]
[ECO "C95"]
[WhiteElo "2371"]
[BlackElo "2639"]
[Annotator "TA"]
[PlyCount "70"]
[EventDate "2022.11.23"]
[EventType "swiss"]
[EventCountry "USA"]
[SourceTitle "playchess.com"]
[Source "ChessBase"]
[SourceQuality "1"]
[TimeControl "5400+30"]

{[%evp 29,69,14,31,1,0,6,19,23,43,49,31,31,41,37,61,50,62,58,71,64,114,59,87,65,70,0,0,0,0,0,0,0,0,0,0,0,0,0,0,-29998,-29999,-29999]} 1. e4 {[%emt 0:11:06]} e5 {[%emt 0:01:06]} 2. Nf3 {[%emt 0:00:17]} Nc6 {[%emt 0:00:17]} 3. Bb5 {[%emt 0:00:57][%cal Bf1b5,Bb5a4,Ba4b3][%mdl 32]} a6 {[%emt 0:01:04]} 4. Ba4 {[%emt 0:00:07]} Nf6 {[%emt 0:01:31]} 5. O-O {[%emt 0:00:41]} Be7 {[%emt 0:01:44]} 6. Re1 {[%emt 0:02:00]} b5 {[%emt 0:01:16]} 7. Bb3 {[%emt 0:00:04]} d6 {[%emt 0:00:14]} 8. c3 {[%emt 0:00:32]} O-O {[%emt 0:00:12]} 9. h3 {[%emt 0:00:16]} Nb8 {[%emt 0:02:37]} 10. d4 {[%emt 0:01:05]} Nbd7 {[%emt 0:00:24]} 11. Nbd2 {[%emt 0:00:32][%cal Bb1d2,Bd2f1,Bf1g3][%mdl 32]} Bb7 {[%emt 0:00:13]} 12. Bc2 {[%emt 0:00:27]} Re8 {[%emt 0:01:05]} 13. Nf1 {[%emt 0:00:57]} Bf8 {[%emt 0:00:28]} 14. Ng3 {[%emt 0:00:06]} g6 {[%emt 0:00:25]} 15. Bd2 {[%emt 0:03:09]} Bg7 {[%emt 0:14:01]} 16. Qc1 {[%emt 0:01:27] C95: Closed Ruy Lopez: Breyer Variation with 10 d4.} d5 {[%emt 0:05:47]} 17. Bg5 {[%emt 0:06:49] next Nxe5 is good for White.} Qb8 $5 {[%emt 0:21:39][%mdl 4] [#] Exploring less charted territory.} 18. dxe5 $146 {[%emt 0:06:29] The position is equal.} (18. Nxe5 {simplifies} Nxe5 19. dxe5 Nxe4 20. Bxe4 dxe4 21. Nxe4 Bxe4 22. Rxe4 Rxe5 23. Rxe5 Bxe5 24. Qe3) ({Predecessor:} 18. Nxe5 Nxe5 19. dxe5 Nxe4 20. Bxe4 dxe4 21. Bf6 Bxf6 22. exf6 Re6 23. Qg5 Qd8 24. Nh5 Rd6 25. Qg4 Qf8 26. Rad1 Rad8 27. Ng3 Rxf6 28. Nxe4 {½-½ (28) Liberzon,V (2550)-Gligoric,S (2565) Bad Lauterberg 1977}) 18... Nxe5 {[%emt 0:04:45]} (18... Nxe4 {looks sharper.} 19. Bxe4 dxe4 20. Nxe4 Nxe5 21. Nxe5 Bxe5 22. Nf6+ Bxf6 23. Bxf6 Rxe1+ 24. Qxe1 Qe8) 19. Nxe5 {[%emt 0:01:56]} Rxe5 {[%emt 0:00:09]} 20. f4 {[%emt 0:16:51]} Re8 {[%emt 0:01:59]} 21. e5 {[%emt 0:00:30]} Nd7 {[%emt 0:00:28]} 22. Qd1 {[%emt 0:05:31]} c5 {[%emt 0:09:10]} 23. Qg4 {[%emt 0:02:36]} Qc7 {[%emt 0:00:30]} 24. Rad1 {[%emt 0:09:57]} Qc6 {[%emt 0:06:43] [#]} ({Black should try} 24... Nf8 $14) 25. Qh4 {[%emt 0:12:35]} (25. Ne4 $3 $16 {[%mdl 512]}) 25... f6 {[%emt 0:02:19]} ({Less strong is} 25... d4 26. Be4 (26. cxd4 $2 Qxg2#) 26... Qb6 27. Bxb7 Qxb7 28. Ne4 $16 (28. cxd4 cxd4 29. Ne4 Qb6 $16)) 26. exf6 {[%emt 0:02:17]} Nxf6 {[%emt 0:00:28][%cal Od5d4]} 27. f5 {[%emt 0:03:46] Inhibits d4.} (27. Rf1 $1 $14 d4 28. Rf2) 27... d4 $1 $11 {[%emt 0:11:29][%csl Gb7][%cal Rc6g2]} 28. Rxe8+ {[%emt 0:00:47]} Rxe8 {[%emt 0:00:09][%csl Gb7][%cal Rc6g2]} (28... Nxe8 $2 29. Be4 Qb6 30. f6 Bxf6 31. Bxb7 Qxb7 32. Bxf6 $18) 29. Rd2 {[%emt 0:00:09]} Nd7 $1 {[%emt 0:02:27][%cal Bf6d7,Bd7e5,Be5f3][%mdl 32]} ({Don't do} 29... Re1+ 30. Kh2 $16) 30. Rf2 {[%emt 0:06:17]} dxc3 $40 {[%emt 0:02:57][%mdl 128] White needs to defend precisely.} 31. bxc3 {[%emt 0:00:07]} Bxc3 {[%emt 0:05:27] White must now prevent ...Bd4.} 32. f6 {[%emt 0:01:03] f7+ would kill now.} Re1+ {[%emt 0:00:17]} (32... Bd4 {is a self mate.} 33. f7+ Kf8 34. Bh6+ Bg7 35. Bxg7+ Kxg7 36. fxe8=Q Qd5 37. Qee7+) 33. Kh2 {[%emt 0:00:22] White wants to mate with f7+.} Ne5 {[%emt 0:00:04][%cal Oc6g2] Prevents f7+. ( -> ...Qxg2+!). Dancing on a razor blade.} (33... Qd6 {[#]} 34. Bxg6 $1 {[%mdl 512]} Nf8 35. Qh6 $1 Bxf6 36. Rxf6) 34. Qh6 $2 {[%emt 0:04:20][%mdl 8192] [#]} (34. Be4 $11 Qc7 35. Bf4) 34... Qxg2+ $3 {[%emt 0:00:45][%mdl 512]} 35. Rxg2 {[%emt 0:00:18]} Nf3# {[%emt 0:00:04] Weighted Error Value: White=0.43/Black=0.09 (flawless)} 0-1

[Event "US Masters 2022"]
[Site "Charlotte"]
[Date "2022.11.24"]
[Round "2.3"]
[White "Liang, Awonder"]
[Black "Ippolito, Dean"]
[Result "1/2-1/2"]
[ECO "E97"]
[WhiteElo "2630"]
[BlackElo "2368"]
[Annotator "TA"]
[PlyCount "76"]
[EventDate "2022.11.23"]
[EventType "swiss"]
[EventCountry "USA"]
[SourceTitle "playchess.com"]
[Source "ChessBase"]
[SourceQuality "1"]
[TimeControl "5400+30"]

{[%evp 20,76,50,23,49,27,41,41,43,43,46,26,42,31,35,31,35,23,41,33,45,54,57,60,58,52,59,2,2,-25,-25,-9,-13,-12,-15,-33,-14,-73,-32,-101,-73,-92,-96,-106,0,0,0,0,0,0,0,0,0,0,0,0,0,0,0]} 1. Nf3 {[%emt 0:00:02]} Nf6 {[%emt 0:00:06]} 2. c4 {[%emt 0:00:05]} g6 {[%emt 0:01:01]} 3. Nc3 {[%emt 0:00:10]} Bg7 {[%emt 0:00:13]} 4. e4 {[%emt 0:00:01]} d6 {[%emt 0:00:07]} 5. d4 {[%emt 0:00:07]} O-O {[%emt 0:00:16]} 6. Be2 {[%emt 0:00:01]} e5 {[%emt 0:00:27]} 7. O-O {[%emt 0:00:03]} Nc6 {[%emt 0:00:13]} 8. d5 {[%emt 0:00:01]} Ne7 {[%emt 0:00:06]} 9. b4 {[%emt 0:00:06]} a5 {[%emt 0:00:25]} 10. bxa5 {[%emt 0:00:08]} Rxa5 {[%emt 0:00:08]} 11. a4 {[%emt 0:01:24]} Ra8 {[%emt 0:00:17] E97: King's Indian: Classical Main Line (6...e5 7 0-0 Nc6): 8 Be3 and 8 d5 Ne7, not 9 Ne1.} 12. Re1 {[%emt 0:03:43][%cal Oc4c5] 12.c5 is setting a new trend.} b6 {[%emt 0:10:09]} 13. Nd2 {[%emt 0:23:06] [#]} Nd7 $146 {[%emt 0:01:48][%cal Bf6d7,Bd7c5,Bc5b3][%mdl 32] White is slightly better.} ({Predecessor:} 13... Ne8 14. Bb2 f5 15. Nb5 Nf6 16. exf5 Nxf5 17. Ra3 Bh6 18. g3 Bxd2 19. Qxd2 Ne4 {0-1 (69) Shen,Y (2449)-Zhu,J (2439) Hangzhou 2019}) 14. Nb3 {[%emt 0:00:57]} Nc5 {[%emt 0:00:57]} 15. a5 {[%emt 0:00:32]} Nxb3 {[%emt 0:00:41]} 16. Qxb3 {[%emt 0:00:02]} bxa5 {[%emt 0:01:52]} 17. c5 {[%emt 0:03:36]} dxc5 {[%emt 0:05:38]} 18. Ba3 {[%emt 0:00:57]} Re8 {[%emt 0:02:04]} 19. Bxc5 {[%emt 0:00:24]} Bf8 {[%emt 0:01:26][%cal Oe7f5]} 20. Bc4 {[%emt 0:18:18][%cal Od5d6]} Ba6 {[%emt 0:05:58] Inhibits d6.} 21. Nb5 {[%emt 0:02:37] [#] Strongly threatening d6.} (21. Rxa5 $2 Bxc4 22. Rxa8 Bxb3 $19) (21. Bxa6 {simplifies} Rxa6 22. Rec1 Ra8 23. Nb5) 21... Nc8 {[%emt 0:16:02] Inhibits d6.} 22. d6 $1 {[%emt 0:02:10]} Bxb5 {[%emt 0:01:06]} 23. Bxb5 {[%emt 0:13:28]} (23. Bxf7+ $14 Kg7 24. Qxb5 Kxf7 25. d7 (25. Rxa5 $2 Nxd6 26. Qb3+ Kf6 $19)) 23... Rb8 $132 {[%emt 0:08:29][%mdl 2048] And now ...c6 would win. Black is not keeping still} 24. Qd3 {[%emt 0:19:48] Inhibits c6.} (24. Rxa5 Nxd6 25. Bxd6 (25. Rd1 $2 c6 $19) 25... Qxd6 $17) (24. Qa4 {simplifies} Re6 25. dxc7 Qxc7 26. Bxf8 Kxf8 27. Qxa5 Qxa5 28. Rxa5 Ne7 29. f3) 24... Re6 {[%emt 0:05:13][%cal Rc8d6]} 25. dxc7 {[%emt 0:00:47]} (25. Rxa5 $2 c6 26. d7 Nd6 $19) 25... Qxc7 {[%emt 0:00:06]} 26. Bxf8 {[%emt 0:00:23]} Kxf8 {[%emt 0:00:22]} 27. Rec1 {[%emt 0:00:34]} Qb6 {[%emt 0:07:29]} 28. Bc4 {[%emt 0:01:23]} (28. Qa3+ $1 $11 Kg7 29. Qxa5 (29. Bd7 Rf6 $11)) 28... Rf6 {[%emt 0:01:20]} 29. Ra2 {[%emt 0:00:01]} (29. Qd2 $15) 29... Kg7 {[%emt 0:02:19]} 30. g3 {[%emt 0:00:57]} Ne7 {[%emt 0:07:37] Prevents Qd5.} 31. Bd5 {[%emt 0:00:01]} Nc6 {[%emt 0:00:52]} (31... Qb4 $17 32. Qe2 Rd6) 32. Bxc6 {[%emt 0:05:18] The position is equal.} Rxc6 {[%emt 0:04:07]} 33. Rxc6 {[%emt 0:00:02]} Qxc6 {[%emt 0:00:04]} 34. Rxa5 {[%emt 0:00:04] KQR-KQR} Qc1+ {[%emt 0:00:05]} 35. Kg2 $1 {[%emt 0:00:28]} ({Reject} 35. Qf1 Qc2 36. Rb5 (36. Rxe5 $2 {perishes.} Rb1 $19) 36... Rxb5 37. Qxb5 Qxe4 $17) 35... Rb1 {[%emt 0:01:32] [#] White must now prevent ...Qh1+.} 36. Rxe5 {[%emt 0:00:10]} (36. Kf3 Qh1+ 37. Ke3 Qe1+ 38. Kf3 Rb2 39. Rxe5 Rxf2+ 40. Kg4 h5+ $19) 36... Qh1+ {[%emt 0:00:04]} (36... f6 $2 37. Re7+ Kh6 38. Rf7 $18) 37. Kh3 {[%emt 0:00:04]} Rg1 {[%emt 0:00:09]} 38. Qd4 {[%emt 0:03:03] Threatening mate with Rf5+.} (38. Qc3 $5 Rc1 $8 39. Qd4 $11) 38... Rd1 {[%emt 0:04:17] Weighted Error Value: White=0.15 (very precise) /Black=0.12 (very precise)} (38... Qg2+ $2 39. Kg4 $18) 1/2-1/2